fUST/lending_fUST_20250208
["ID","MTS","AMOUNT","RATE_DAILY","PERIOD"]
[352212483,1738999851284,-500.0,0.00011917,2]
[352212484,1738999851293,-150.11,0.00011917,2]
[352212485,1738999851303,-500.0,0.00011917,2]
[352212486,1738999851312,-500.0,0.00011917,2]
[352212487,1738999851321,-1263.96,0.00011917,2]
[352212488,1738999851331,-151.0,0.00011917,2]
[352212489,1738999851340,-1785.38,0.00011917,2]
[352212490,1738999851349,-500.0,0.00011917,2]
[352212491,1738999851358,-2973.06,0.00011917,2]
[352212492,1738999851367,-687.97,0.00011917,2]
[352212493,1738999851377,-184.54675569,0.00011917,2]
[352212494,1738999851386,-2935.7,0.00011917,2]
[352212495,1738999851395,-500.0,0.00011917,2]
[352212496,1738999851404,-179.74406986,0.00011917,2]
[352212497,1738999851414,-7041.77,0.00011917,2]
[352212498,1738999851423,-535.46,0.00011917,2]
[352212499,1738999851433,-500.0,0.00011917,2]
[352212500,1738999851444,-846.21,0.00011917,2]
[352212501,1738999851455,-1714.59,0.00011917,2]
[352212502,1738999851465,-1333.51,0.00011917,2]
[352212503,1738999851474,-665.0,0.00011917,2]
[352212504,1738999851483,-151.0,0.00011917,2]
[352212505,1738999851493,-766.04,0.00011917,2]
[352212506,1738999851502,-609.09,0.00011917,2]
[352212507,1738999851512,-1366.96,0.00011917,2]
[352212508,1738999851521,-500.0,0.00011917,2]
[352212509,1738999851530,-500.0,0.00011917,2]
[352212510,1738999851539,-3738.07,0.00011917,2]
[352212511,1738999851549,-500.0,0.00011917,2]
[352212512,1738999851558,-500.0,0.00011917,2]
[352212513,1738999851567,-4096.14,0.00011917,2]
[352212514,1738999851576,-500.0,0.00011917,2]
[352212515,1738999851585,-500.0,0.00011917,2]
[352212516,1738999851594,-500.0,0.00011917,2]
[352212517,1738999851603,-500.0,0.00011917,2]
[352212518,1738999851612,-500.0,0.00011917,2]
[352212519,1738999851621,-501.62037964,0.00011924,2]
[352212520,1738999851630,-201.237282,0.00011938,2]
[352212521,1738999851638,-1000.0,0.00011938,2]
[352212522,1738999851648,-500.96871249,0.00011955,2]
[352212523,1738999851657,-1000.0,0.00012009,2]
[352212524,1738999851666,-497.60941393,0.00012039,2]
[352212525,1738999851675,-420.0,0.00012041,2]
[352212526,1738999851684,-531.19685,0.00012054,2]
[352212527,1738999851693,-151.0,0.00012054,2]
[352212528,1738999851702,-245.701619,0.00012054,2]
[352212529,1738999851711,-245.701619,0.00012054,2]
[352212530,1738999851720,-572.73,0.00012054,2]
[352212531,1738999851729,-500.0,0.00012054,2]
[352212532,1738999851739,-359.62503,0.00012054,2]
[352212533,1738999851748,-359.62503,0.00012054,2]
[352212534,1738999851758,-787.58,0.00012054,2]
[352212535,1738999851767,-1238.54,0.00012054,2]
[352212536,1738999851776,-151.0,0.00012054,2]
[352212537,1738999851786,-500.0,0.00012054,2]
[352212538,1738999851795,-500.0,0.00012054,2]
[352212539,1738999851804,-500.0,0.00012054,2]
[352212540,1738999851814,-151.0,0.00012054,2]
[352212541,1738999851823,-151.0,0.00012054,2]
[352212542,1738999851832,-221.98709974,0.00012054,2]
[352212543,1738999851842,-500.0,0.00012054,2]
[352212544,1738999851851,-951.9,0.00012054,2]
[352212545,1738999851860,-500.0,0.00012054,2]
[352212546,1738999851869,-151.0,0.00012054,2]
[352212547,1738999851879,-889.27,0.00012054,2]
[352212548,1738999851888,-204.187798,0.00012054,2]
[352212549,1738999851898,-815.22,0.00012054,2]
[352212550,1738999851907,-204.187798,0.00012054,2]
[352212551,1738999851918,-500.0,0.00012054,2]
[352212552,1738999851933,-500.0,0.00012054,2]
[352212553,1738999851942,-500.0,0.00012054,2]
[352212554,1738999851952,-649.54,0.00012054,2]
[352212555,1738999851964,-743.18,0.00012054,2]
[352212556,1738999851973,-500.0,0.00012054,2]
[352212557,1738999851982,-361.60167079,0.00012054,2]
[352212558,1738999851991,-1497.02,0.00012054,2]
[352212559,1738999852000,-208.255383,0.00012054,2]
[352212560,1738999852009,-500.0,0.00012054,2]
[352212561,1738999852019,-500.0,0.00012054,2]
[352212562,1738999852028,-620.35377305,0.00012054,2]
[352212563,1738999852037,-1513.32,0.00012054,2]
[352212564,1738999852046,-500.0,0.00012054,2]
[352212565,1738999852055,-1090.89,0.00012054,2]
[352212566,1738999852065,-500.0,0.00012054,2]
[352212567,1738999852074,-500.0,0.00012054,2]
[352212568,1738999852083,-500.0,0.00012054,2]
[352212569,1738999852092,-500.0,0.00012054,2]
[352212570,1738999852102,-435.42802,0.00012054,2]
[352212571,1738999852111,-435.42802,0.00012054,2]
[352212572,1738999852120,-693.0,0.00012054,2]
[352212573,1738999852129,-500.0,0.00012054,2]
[352212574,1738999852139,-151.0,0.00012054,2]
[352212575,1738999852148,-500.0,0.00012054,2]
[352212576,1738999852157,-1747.5,0.00012054,2]
[352212577,1738999852166,-151.374975,0.00012054,2]
[352212578,1738999852175,-500.0,0.00012054,2]
[352212579,1738999852184,-154.89476,0.00012054,2]
[352212580,1738999852193,-271.22721,0.00012054,2]
[352212581,1738999852202,-221.643454,0.00012054,2]
[352212582,1738999852212,-271.22721,0.00012054,2]
[352212583,1738999852221,-41.90983992,0.00012054,2]
[352212584,1738999852492,-500.0,0.00010958,2]
[352212585,1738999852502,-500.0,0.00011095,2]
[352212586,1738999852511,-500.0,0.00011232,2]
[352212587,1738999852521,-500.0,0.00011369,2]
[352212588,1738999852531,-179.73361408,0.00012054,2]
[352212589,1738999852540,-500.0,0.00012054,2]
[352212590,1738999852550,-500.0,0.00012054,2]
[352212591,1738999852559,-1265.01,0.00012054,2]
[352212592,1738999852568,-500.0,0.00012054,2]
[352212593,1738999852577,-348.11,0.00012054,2]
[352212594,1738999852586,-151.0,0.00012054,2]
[352212595,1738999852596,-621.85,0.00012054,2]
[352212596,1738999852605,-500.0,0.00012054,2]
[352212597,1738999852615,-1053.63,0.00012054,2]
[352212598,1738999852624,-500.0,0.00012054,2]
[352212599,1738999852633,-798.68,0.00012054,2]
[352212600,1738999852643,-712.89,0.00012054,2]
[352212601,1738999852652,-536.32,0.00012054,2]
[352212602,1738999852661,-500.0,0.00012054,2]
[352212603,1738999852670,-500.0,0.00012054,2]
[352212604,1738999852679,-500.0,0.00012054,2]
[352212605,1738999852689,-759.03,0.00012054,2]
[352212606,1738999852698,-1117.37,0.00012054,2]
[352212607,1738999852707,-3762.27,0.00012054,2]
[352212608,1738999852716,-1619.3,0.00012054,2]
[352212609,1738999852725,-2379.14,0.00012054,2]
[352212610,1738999852735,-500.0,0.00012054,2]
[352212611,1738999852743,-1213.89,0.00012054,2]
[352212612,1738999852753,-668.02,0.00012054,2]
[352212613,1738999852762,-3393.86,0.00012054,2]
[352212614,1738999852771,-500.0,0.00012054,2]
[352212615,1738999852780,-4286.13,0.00012054,2]
[352212616,1738999852790,-1604.86,0.00012054,2]
[352212617,1738999852799,-500.0,0.00012054,2]
[352212618,1738999852809,-1243.47,0.00012054,2]
[352212619,1738999852818,-409.82,0.00012054,2]
[352212620,1738999852828,-3090.98,0.00012054,2]
[352212621,1738999852837,-1307.31,0.00012054,2]
[352212622,1738999852847,-14234.60072195,0.00012054,2]
[352212623,1738999853087,-1459.22927805,0.00012054,2]
[352212624,1738999853097,-500.0,0.00012054,2]
[352212625,1738999853106,-517.92,0.00012054,2]
[352212626,1738999853115,-500.0,0.00012054,2]
[352212627,1738999853125,-592.56,0.00012054,2]
[352212628,1738999853134,-867.44,0.00012054,2]
[352212629,1738999853263,-51875.84,0.00012054,2]
[352212630,1738999853273,-1780.05,0.00012054,2]
[352212631,1738999853283,-500.0,0.00012054,2]
[352212632,1738999853292,-500.0,0.00012054,2]
[352212633,1738999853301,-1750.32,0.00012054,2]
[352212634,1738999853310,-3837.46,0.00012054,2]
[352212635,1738999853320,-500.0,0.00012054,2]
[352212636,1738999853329,-2350.46,0.00012054,2]
[352212637,1738999853338,-500.0,0.00012054,2]
[352212638,1738999853347,-2262.77,0.00012054,2]
[352212639,1738999853357,-1892.11,0.00012054,2]
[352212640,1738999853366,-500.0,0.00012054,2]
[352212641,1738999853375,-744.82,0.00012054,2]
[352212642,1738999853385,-1322.15,0.00012054,2]
[352212643,1738999853395,-500.0,0.00012054,2]
[352212644,1738999853404,-1214.94,0.00012054,2]
[352212645,1738999853413,-988.32,0.00012054,2]
[352212646,1738999853422,-500.0,0.00012054,2]
[352212647,1738999853431,-500.0,0.00012054,2]
[352212648,1738999853439,-500.0,0.00012054,2]
[352212649,1738999853449,-500.0,0.00012054,2]
[352212650,1738999853458,-1263.96,0.00012054,2]
[352212651,1738999853467,-1785.38,0.00012054,2]
[352212652,1738999853476,-500.0,0.00012054,2]
[352212653,1738999853486,-2973.06,0.00012054,2]
[352212654,1738999853495,-687.97,0.00012054,2]
[352212655,1738999853504,-2935.7,0.00012054,2]
[352212656,1738999853514,-500.0,0.00012054,2]
[352212657,1738999853523,-7041.77,0.00012054,2]
[352212658,1738999853532,-500.0,0.00012054,2]
[352212659,1738999853541,-846.21,0.00012054,2]
[352212660,1738999853550,-1714.59,0.00012054,2]
[352212661,1738999853559,-1333.51,0.00012054,2]
[352212662,1738999853568,-665.0,0.00012054,2]
[352212663,1738999853577,-766.04,0.00012054,2]
[352212664,1738999853587,-609.09,0.00012054,2]
[352212665,1738999853595,-1366.96,0.00012054,2]
[352212666,1738999853604,-500.0,0.00012054,2]
[352212667,1738999853614,-3738.07,0.00012054,2]
[352212668,1738999853623,-500.0,0.00012054,2]
[352212669,1738999853632,-500.0,0.00012054,2]
[352212670,1738999853641,-4096.14,0.00012054,2]
[352212671,1738999853650,-500.0,0.00012054,2]
[352212672,1738999853659,-500.0,0.00012054,2]
[352212673,1738999853668,-500.0,0.00012054,2]
[352212674,1738999853677,-500.0,0.00012054,2]
[352212675,1738999853686,-500.0,0.00012054,2]
[352212676,1738999853695,-417.8589168,0.00012163,2]
[352212677,1738999853704,-161.0,0.0001218,2]
[352212678,1738999853713,-500.0,0.00012191,2]
[352212679,1738999853723,-500.63661163,0.00012191,2]
[352212680,1738999853732,-150.11,0.00012191,2]
[352212681,1738999853741,-150.11,0.00012191,2]
[352212682,1738999853750,-150.11,0.00012191,2]
[352212683,1738999853759,-788.0,0.00012191,2]
[352212684,1738999853768,-150.11,0.00012191,2]
[352212685,1738999853778,-500.0,0.00012191,2]
[352212686,1738999853788,-500.0,0.00012191,2]
[352212687,1738999853798,-500.4349884,0.00012191,2]
[352212688,1738999853807,-150.11,0.00012191,2]
[352212689,1738999853816,-531.19685796,0.00012191,2]
[352212690,1738999853826,-151.0,0.00012191,2]
[352212691,1738999853835,-245.701619,0.00012191,2]
[352212692,1738999853844,-245.701627,0.00012191,2]
[352212693,1738999853853,-572.73,0.00012191,2]
[352212694,1738999853863,-500.0,0.00012191,2]
[352212695,1738999853872,-151.0,0.00012191,2]
[352212696,1738999853881,-359.62503,0.00012191,2]
[352212697,1738999853890,-359.625031,0.00012191,2]
[352212698,1738999853899,-787.58,0.00012191,2]
[352212699,1738999853908,-1238.54,0.00012191,2]
[352212700,1738999853919,-150.33327173,0.00012191,2]
[352212701,1738999853932,-500.0,0.00012191,2]
[352212702,1738999853942,-500.0,0.00012191,2]
[352212703,1738999853951,-500.0,0.00012191,2]
[352212704,1738999853962,-500.0,0.00012191,2]
[352212705,1738999853973,-951.9,0.00012191,2]
[352212706,1738999853982,-500.0,0.00012191,2]
[352212707,1738999853991,-889.27,0.00012191,2]
[352212708,1738999854002,-815.22,0.00012191,2]
[352212709,1738999854012,-172.129493,0.00012191,2]
[352212710,1738999854021,-172.129493,0.00012191,2]
[352212711,1738999854031,-507.78406996,0.00012191,2]
[352212712,1738999854040,-239.09,0.00012191,2]
[352212713,1738999854049,-500.0,0.00012191,2]
[352212714,1738999854059,-649.54,0.00012191,2]
[352212715,1738999854068,-743.18,0.00012191,2]
[352212716,1738999854077,-500.0,0.00012191,2]
[352212717,1738999854086,-1497.02,0.00012191,2]
[352212718,1738999854095,-500.0,0.00012191,2]
[352212719,1738999854104,-1513.32,0.00012191,2]
[352212720,1738999854114,-500.0,0.00012191,2]
[352212721,1738999854123,-1090.89,0.00012191,2]
[352212722,1738999854132,-500.0,0.00012191,2]
[352212723,1738999854142,-500.0,0.00012191,2]
[352212724,1738999854151,-500.0,0.00012191,2]
[352212725,1738999854160,-693.0,0.00012191,2]
[352212726,1738999854169,-500.0,0.00012191,2]
[352212727,1738999854179,-1747.5,0.00012191,2]
[352212728,1738999854188,-500.0,0.00012191,2]
[352212729,1738999854197,-500.0,0.00012191,2]
[352212730,1738999854207,-500.0,0.00012191,2]
[352212731,1738999854216,-500.0,0.00012191,2]
[352212732,1738999854225,-151.0,0.00012191,2]
[352212733,1738999854235,-621.85,0.00012191,2]
[352212734,1738999854244,-500.0,0.00012191,2]
[352212735,1738999854254,-1053.63,0.00012191,2]
[352212736,1738999854263,-500.0,0.00012191,2]
[352212737,1738999854272,-798.68,0.00012191,2]
[352212738,1738999854281,-712.89,0.00012191,2]
[352212739,1738999854291,-536.32,0.00012191,2]
[352212740,1738999854300,-267.12,0.00012191,2]
[352212741,1738999854309,-500.0,0.00012191,2]
[352212742,1738999854319,-168.52,0.00012191,2]
[352212743,1738999854328,-759.03,0.00012191,2]
[352212744,1738999854338,-3762.27,0.00012191,2]
[352212745,1738999854347,-1619.3,0.00012191,2]
[352212746,1738999854356,-2379.14,0.00012191,2]
[352212747,1738999854365,-1213.89,0.00012191,2]
[352212748,1738999854374,-668.02,0.00012191,2]
[352212749,1738999854383,-3393.86,0.00012191,2]
[352212750,1738999854393,-500.0,0.00012191,2]
[352212751,1738999854402,-4286.13,0.00012191,2]
[352212752,1738999854412,-1604.86,0.00012191,2]
[352212753,1738999854421,-500.0,0.00012191,2]
[352212754,1738999854431,-1243.47,0.00012191,2]
[352212755,1738999854440,-3090.98,0.00012191,2]
[352212756,1738999854450,-1307.31,0.00012191,2]
[352212757,1738999854459,-15693.83,0.00012191,2]
[352212758,1738999854468,-500.0,0.00012191,2]
[352212759,1738999854478,-867.44,0.00012191,2]
[352212760,1738999854487,-51875.84,0.00012191,2]
[352212761,1738999854496,-1780.05,0.00012191,2]
[352212762,1738999854506,-500.0,0.00012191,2]
[352212763,1738999854515,-232.07334217,0.00012191,2]
[352212764,1738999854525,-1750.32,0.00012191,2]
[352212765,1738999854535,-3837.46,0.00012191,2]
[352212766,1738999854544,-2350.46,0.00012191,2]
[352212767,1738999854554,-2262.77,0.00012191,2]
[352212768,1738999854563,-1892.11,0.00012191,2]
[352212769,1738999854572,-744.82,0.00012191,2]
[352212770,1738999854581,-1322.15,0.00012191,2]
[352212771,1738999854590,-500.0,0.00012191,2]
[352212772,1738999854600,-1214.94,0.00012191,2]
[352212773,1738999854609,-988.32,0.00012191,2]
[352212774,1738999854619,-151.0,0.00012191,2]
[352212775,1738999854628,-500.0,0.00012191,2]
[352212776,1738999854639,-151.0,0.00012191,2]
[352212777,1738999854648,-500.0,0.00012191,2]
[352212778,1738999854658,-500.0,0.00012191,2]
[352212779,1738999854668,-151.0,0.00012191,2]
[352212780,1738999854677,-151.0,0.00012191,2]
[352212781,1738999854687,-1263.96,0.00012191,2]
[352212782,1738999854696,-1785.38,0.00012191,2]
[352212783,1738999854708,-500.0,0.00012191,2]
[352212784,1738999854719,-2973.06,0.00012191,2]
[352212785,1738999854728,-687.97,0.00012191,2]
[352212786,1738999854742,-2935.7,0.00012191,2]
[352212787,1738999854751,-500.0,0.00012191,2]
[352212788,1738999854760,-7041.77,0.00012191,2]
[352212789,1738999854770,-500.0,0.00012191,2]
[352212790,1738999854779,-846.21,0.00012191,2]
[352212791,1738999854789,-1714.59,0.00012191,2]
[352212792,1738999854798,-1333.51,0.00012191,2]
[352212793,1738999854807,-665.0,0.00012191,2]
[352212794,1738999854816,-766.04,0.00012191,2]
[352212795,1738999854825,-609.09,0.00012191,2]
[352212796,1738999854835,-1366.96,0.00012191,2]
[352212797,1738999854844,-500.0,0.00012191,2]
[352212798,1738999854854,-3738.07,0.00012191,2]
[352212799,1738999854863,-531.99,0.00012191,2]
[352212800,1738999854872,-4096.14,0.00012191,2]
[352212801,1738999854881,-500.0,0.00012191,2]
[352212802,1738999854891,-500.0,0.00012191,2]
[352212803,1738999854901,-500.0,0.00012191,2]
[352212804,1738999854911,-500.0,0.00012191,2]
[352212805,1738999854922,-10000.0,0.00012246,2]
[352212806,1738999854939,-215.7968595,0.00012247,2]
[352212807,1738999854948,-154.5736464,0.00012247,2]
[352212808,1738999854959,-154.5736464,0.00012247,2]
[352212809,1738999854968,-215.7968595,0.00012247,2]
[352212810,1738999854979,-154.5736464,0.00012247,2]
[352212811,1738999854988,-215.7968595,0.00012247,2]
[352212812,1738999854997,-215.7968595,0.00012247,2]
[352212813,1738999855007,-154.5736464,0.00012247,2]
[352212814,1738999855017,-215.7968595,0.00012247,2]
[352212815,1738999855026,-154.5736464,0.00012247,2]
[352212816,1738999855035,-308.711614,0.00012247,2]
[352212817,1738999855044,-215.7968595,0.00012247,2]
[352212818,1738999855053,-215.7968595,0.00012247,2]
[352212819,1738999855062,-153.91001934,0.00012285,2]
[352212820,1738999855071,-151.0,0.00012328,2]
[352212821,1738999855080,-216.220034,0.00012328,2]
[352212822,1738999855089,-216.220034,0.00012328,2]
[352212823,1738999855098,-151.0,0.00012328,2]
[352212824,1738999855108,-572.73,0.00012328,2]
[352212825,1738999855117,-500.0,0.00012328,2]
[352212826,1738999855127,-787.58,0.00012328,2]
[352212827,1738999855137,-1238.54,0.00012328,2]
[352212828,1738999855146,-151.770735,0.00012328,2]
[352212829,1738999855156,-500.0,0.00012328,2]
[352212830,1738999855171,-393.34371265,0.00012328,2]
[352212831,1738999855180,-500.0,0.00012328,2]
[352212832,1738999855189,-151.0,0.00012328,2]
[352212833,1738999855199,-151.0,0.00012328,2]
[352212834,1738999855211,-345.91111322,0.00012328,2]
[352212835,1738999855221,-951.9,0.00012328,2]
[352212836,1738999855231,-500.0,0.00012328,2]
[352212837,1738999855241,-151.0,0.00012328,2]
[352212838,1738999855251,-889.27,0.00012328,2]
[352212839,1738999855260,-204.187798,0.00012328,2]
[352212840,1738999855269,-815.22,0.00012328,2]
[352212841,1738999855279,-204.187798,0.00012328,2]
[352212842,1738999855287,-172.129493,0.00012328,2]
[352212843,1738999855296,-172.129493,0.00012328,2]
[352212844,1738999855305,-275.13998755,0.00012328,2]
[352212845,1738999855314,-649.54,0.00012328,2]
[352212846,1738999855323,-743.18,0.00012328,2]
[352212847,1738999855333,-500.0,0.00012328,2]
[352212848,1738999855342,-1497.02,0.00012328,2]
[352212849,1738999855352,-500.0,0.00012328,2]
[352212850,1738999855361,-1513.32,0.00012328,2]
[352212851,1738999855370,-500.0,0.00012328,2]
[352212852,1738999855380,-1090.89,0.00012328,2]
[352212853,1738999855389,-500.0,0.00012328,2]
[352212854,1738999855398,-500.0,0.00012328,2]
[352212855,1738999855408,-500.0,0.00012328,2]
[352212856,1738999855417,-435.42802,0.00012328,2]
[352212857,1738999855427,-435.42802,0.00012328,2]
[352212858,1738999855436,-693.0,0.00012328,2]
[352212859,1738999855446,-151.0,0.00012328,2]
[352212860,1738999855457,-500.0,0.00012328,2]
[352212861,1738999855466,-1747.5,0.00012328,2]
[352212862,1738999855475,-277.8004232,0.00012328,2]
[352212863,1738999855485,-271.22721,0.00012328,2]
[352212864,1738999855494,-221.643454,0.00012328,2]
[352212865,1738999855503,-271.22721,0.00012328,2]
[352212866,1738999855513,-221.643454,0.00012328,2]
[352212867,1738999855522,-500.0,0.00012328,2]
[352212868,1738999855531,-500.0,0.00012328,2]
[352212869,1738999855541,-151.0,0.00012328,2]
[352212870,1738999855550,-621.85,0.00012328,2]
[352212871,1738999855559,-500.0,0.00012328,2]
[352212872,1738999855569,-1053.63,0.00012328,2]
[352212873,1738999855578,-500.0,0.00012328,2]
[352212874,1738999855587,-798.68,0.00012328,2]
[352212875,1738999855596,-712.89,0.00012328,2]
[352212876,1738999855605,-536.32,0.00012328,2]
[352212877,1738999855615,-500.0,0.00012328,2]
[352212878,1738999855624,-759.03,0.00012328,2]
[352212879,1738999855741,-3762.27,0.00012328,2]
[352212880,1738999855750,-1619.3,0.00012328,2]
[352212881,1738999855760,-2379.14,0.00012328,2]
[352212882,1738999855769,-1213.89,0.00012328,2]
[352212883,1738999855778,-668.02,0.00012328,2]
[352212884,1738999855787,-3393.86,0.00012328,2]
[352212885,1738999855795,-500.0,0.00012328,2]
[352212886,1738999855804,-4286.13,0.00012328,2]
[352212887,1738999855814,-1604.86,0.00012328,2]
[352212888,1738999855823,-230.98636797,0.00012328,2]
[352212889,1738999855832,-1243.47,0.00012328,2]
[352212890,1738999855841,-3090.98,0.00012328,2]
[352212891,1738999855850,-1307.31,0.00012328,2]
[352212892,1738999855859,-15693.83,0.00012328,2]
[352212893,1738999855868,-500.0,0.00012328,2]
[352212894,1738999855877,-867.44,0.00012328,2]
[352212895,1738999855886,-51875.84,0.00012328,2]
[352212896,1738999855895,-1780.05,0.00012328,2]
[352212897,1738999855904,-500.0,0.00012328,2]
[352212898,1738999855914,-1750.32,0.00012328,2]
[352212899,1738999855925,-3837.46,0.00012328,2]
[352212900,1738999855934,-2350.46,0.00012328,2]
[352212901,1738999855944,-2262.77,0.00012328,2]
[352212902,1738999855953,-1892.11,0.00012328,2]
[352212903,1738999855964,-744.82,0.00012328,2]
[352212904,1738999855973,-1322.15,0.00012328,2]
[352212905,1738999855982,-1214.94,0.00012328,2]
[352212906,1738999855991,-988.32,0.00012328,2]
[352212907,1738999856003,-151.0,0.00012328,2]
[352212908,1738999856014,-331.98,0.00012328,2]
[352212909,1738999856023,-151.0,0.00012328,2]
[352212910,1738999856032,-500.0,0.00012328,2]
[352212911,1738999856042,-500.0,0.00012328,2]
[352212912,1738999856051,-151.0,0.00012328,2]
[352212913,1738999856061,-227.967871,0.00012328,2]
[352212914,1738999856070,-1263.96,0.00012328,2]
[352212915,1738999856080,-1785.38,0.00012328,2]
[352212916,1738999856090,-500.0,0.00012328,2]
[352212917,1738999856099,-2973.06,0.00012328,2]
[352212918,1738999856108,-687.97,0.00012328,2]
[352212919,1738999856118,-2935.7,0.00012328,2]
[352212920,1738999856127,-500.0,0.00012328,2]
[352212921,1738999856136,-7041.77,0.00012328,2]
[352212922,1738999856145,-500.0,0.00012328,2]
[352212923,1738999856155,-846.21,0.00012328,2]
[352212924,1738999856164,-1714.59,0.00012328,2]
[352212925,1738999856173,-1333.51,0.00012328,2]
[352212926,1738999856183,-665.0,0.00012328,2]
[352212927,1738999856192,-766.04,0.00012328,2]
[352212928,1738999856201,-609.09,0.00012328,2]
[352212929,1738999856212,-1366.96,0.00012328,2]
[352212930,1738999856222,-500.0,0.00012328,2]
[352212931,1738999856231,-3738.07,0.00012328,2]
[352212932,1738999856241,-4096.14,0.00012328,2]
[352212933,1738999856250,-500.0,0.00012328,2]
[352212934,1738999856259,-500.0,0.00012328,2]
[352212935,1738999856268,-500.0,0.00012328,2]
[352212936,1738999856278,-500.0,0.00012328,2]
[352212937,1738999856294,-284.339525,0.00012329,2]
[352212938,1738999856303,-284.339525,0.00012329,2]
[352212939,1738999856312,-284.339525,0.00012329,2]
[352212940,1738999856322,-284.339525,0.00012329,2]
[352212941,1738999856331,-284.339525,0.00012329,2]
[352212942,1738999856340,-284.339525,0.00012329,2]
[352212943,1738999856350,-284.339525,0.00012329,2]
[352212944,1738999856359,-284.339525,0.00012329,2]
[352212945,1738999856368,-284.339525,0.00012329,2]
[352212946,1738999856377,-284.339525,0.00012329,2]
[352212947,1738999856386,-284.339525,0.00012329,2]
[352212948,1738999856396,-284.339525,0.00012329,2]
[352212949,1738999856405,-284.339525,0.00012329,2]
[352212950,1738999856414,-284.339525,0.00012329,2]
[352212951,1738999856424,-501.07476483,0.0001238,2]
[352212952,1738999856433,-189.822955,0.0001241,2]
[352212953,1738999856442,-212.64290838,0.00012462,2]
[352212954,1738999856452,-500.0,0.00012465,2]
[352212955,1738999856462,-150.11,0.00012465,2]
[352212956,1738999856471,-150.11,0.00012465,2]
[352212957,1738999856483,-150.11,0.00012465,2]
[352212958,1738999856492,-788.0,0.00012465,2]
[352212959,1738999856502,-150.11,0.00012465,2]
[352212960,1738999856511,-500.0,0.00012465,2]
[352212961,1738999856524,-500.0,0.00012465,2]
[352212962,1738999856536,-201.85727146,0.00012465,2]
[352212963,1738999856546,-284.339525,0.00012465,2]
[352212964,1738999856555,-284.339525,0.00012465,2]
[352212965,1738999856564,-151.0,0.00012465,2]
[352212966,1738999856573,-270.089519,0.00012465,2]
[352212967,1738999856583,-572.73,0.00012465,2]
[352212968,1738999856592,-151.0,0.00012465,2]
[352212969,1738999856601,-270.089519,0.00012465,2]
[352212970,1738999856610,-151.0,0.00012465,2]
[352212971,1738999856619,-151.0,0.00012465,2]
[352212972,1738999856629,-181.228071,0.00012465,2]
[352212973,1738999856638,-232.37,0.00012465,2]
[352212974,1738999856647,-151.0,0.00012465,2]
[352212975,1738999856657,-151.234386,0.00012465,2]
[352212976,1738999856666,-151.0,0.00012465,2]
[352212977,1738999856675,-787.58,0.00012465,2]
[352212978,1738999856684,-1238.54,0.00012465,2]
[352212979,1738999856694,-500.0,0.00012465,2]
[352212980,1738999856703,-500.0,0.00012465,2]
[352212981,1738999856712,-951.9,0.00012465,2]
[352212982,1738999856722,-500.0,0.00012465,2]